bitfinex/quotes_ETHUSD_20240607
["timestamp","ask_amount","ask_price","bid_price","bid_amount"]
[1717784446852,2.73852,3651.6,3651.5,0.42900449]
[1717784447195,2.73852,3651.6,3650.3,2.73949]
[1717784447196,7.13137466,3651.6,3650.3,2.73949]
[1717784447395,1.39285466,3651.5,3650.3,2.73949]
[1717784447696,2.73852,3651.6,3650.3,2.73949]
[1717784447697,2.73852,3651.6,3650.6,0.42901096]
[1717784448057,3.0,3651.9,3650.6,0.42901096]
[1717784448058,0.48241712,3651.9,3650.7,4.13201466]
[1717784448251,0.48241712,3651.9,3651.1,2.73884]
[1717784448451,0.48241712,3651.9,3650.6,0.42901096]
[1717784448452,0.48241712,3652.5,3651.4,2.73866]
[1717784448993,2.73771,3652.7,3650.9,2.73905]
[1717784449187,4.27185466,3652.4,3650.6,0.42901096]
[1717784449359,2.73839,3651.8,3650.6,0.42901096]
[1717784449554,2.73839,3651.8,3650.7,4.13200466]
[1717784449866,3.0,3652.3,3650.7,4.13200466]
[1717784449867,0.48241712,3651.7,3650.7,4.13200466]
[1717784450058,5.73801,3652.3,3650.7,4.13200466]
[1717784450059,3.0,3652.2,3650.7,4.13200466]
[1717784450763,2.73801,3652.3,3650.7,1.39285466]
[1717784450982,0.48241712,3652.5,3651.1,2.73884]
[1717784451227,3.0,3652.7,3651.1,4.13169466]
[1717784451400,2.4602,3652.8,3651.1,4.13169466]
[1717784451401,0.48241712,3651.7,3651.1,4.13169466]
[1717784451597,3.0,3652.7,3651.1,4.13169466]
[1717784451903,2.73793,3652.4,3651.1,4.13169466]
[1717784452058,0.48241712,3652.5,3651.3,2.73871]
[1717784452258,0.48241712,3652.5,3651.3,4.13156466]
[1717784453297,0.48241712,3652.6,3651.6,2.73847]
[1717784453501,0.48241712,3652.6,3652.0,2.73817]
[1717784453658,0.48241712,3653.0,3652.0,2.73817]
[1717784453859,2.73785,3652.5,3651.0,2.73894]
[1717784454056,2.73834,3651.9,3650.6,0.42901096]
[1717784454500,0.48241712,3651.3,3650.7,1.39285466]
[1717784454659,0.48241712,3651.2,3650.7,1.39285466]
[1717784454865,0.48241712,3653.0,3650.9,2.73899]
[1717784455067,2.7468,3653.7,3650.6,0.42901096]
[1717784455068,0.21396946,3652.5,3651.3,1.39285466]
[1717784455273,2.73758,3652.9,3651.3,1.39285466]
[1717784455470,3.0,3652.8,3651.3,1.39285466]
[1717784455674,0.21396946,3652.8,3651.3,1.39285466]
[1717784455866,2.4727,3653.7,3651.5,2.73856]
[1717784455867,2.73721,3653.4,3651.5,2.73856]
[1717784456074,2.73721,3653.4,3651.8,2.73831]
[1717784456315,2.73721,3653.4,3652.0,2.73817]
[1717784456483,2.73721,3653.4,3651.4,2.224]
[1717784456484,2.95040946,3654.4,3652.5,1.39285466]
[1717784456694,2.73679,3654.0,3652.6,2.73773]
[1717784457005,2.73679,3654.0,3652.7,1.39285466]
[1717784457303,2.73679,3654.0,3652.8,2.73759]
[1717784457505,0.21396946,3654.1,3652.9,0.0519209]
[1717784457704,0.21396946,3654.2,3653.1,2.73739]
[1717784457908,0.21396946,3654.5,3653.4,2.73716]
[1717784458213,2.95031946,3654.5,3653.4,4.13001466]
[1717784458782,0.01435004,3654.4,3652.8,2.73756]
[1717784459106,0.21396946,3654.1,3652.8,2.9743222]
[1717784459472,0.21396946,3654.1,3652.9,1.39285466]
[1717784459675,0.21396946,3654.1,3653.0,2.7374]
[1717784460018,0.21396946,3654.1,3651.8,2.73833]
[1717784460019,0.21396946,3654.1,3653.2,2.73728]
[1717784460219,0.21396946,3654.1,3651.9,0.28766117]
[1717784460220,0.21396946,3654.1,3652.6,2.7377]
[1717784460442,0.21396946,3654.1,3652.7,1.39285466]
[1717784460611,2.7374,3653.1,3651.7,2.73838]
[1717784460972,2.73702,3653.6,3652.2,2.73804]
[1717784461222,2.73728,3653.3,3651.6,2.73847]
[1717784461410,2.73728,3653.3,3650.6,1.01001096]
[1717784461733,0.21396946,3653.2,3652.5,2.73784]
[1717784462028,5.89335004,3653.8,3651.4,2.73862]
[1717784462319,2.73701,3653.7,3652.0,2.73815]
[1717784462520,3.0,3653.6,3652.2,2.73807]
[1717784462719,2.73701,3653.7,3652.5,2.73778]
[1717784462923,1.53936902,3655.5,3650.6,1.5460415]
[1717784462924,0.21396946,3654.7,3652.9,1.39285466]
[1717784463123,0.49590538,3656.0,3653.6,2.73702]
[1717784463124,0.21396946,3655.0,3653.6,2.73702]
[1717784463418,2.7356,3655.5,3653.2,0.581]
[1717784463419,2.7356,3655.5,3653.9,2.73676]
[1717784463620,2.73585,3655.2,3653.9,2.73676]
[1717784463788,2.73585,3655.2,3653.3,2.73718]
[1717784463983,0.008,3655.7,3653.3,2.73718]
[1717784463984,2.7361,3654.9,3653.4,1.39285466]
[1717784464186,2.7361,3654.9,3653.5,2.73702]
[1717784464530,2.74361,3655.5,3654.0,2.73671]
[1717784464757,0.008,3655.9,3654.5,2.73634]
[1717784464884,2.73521,3656.1,3654.5,2.73634]
[1717784465090,2.73521,3656.1,3654.6,0.2367622]
[1717784465285,2.73521,3656.1,3654.7,2.73613]
[1717784465565,0.008,3656.3,3654.7,2.73613]
[1717784465688,0.22196946,3656.4,3654.7,2.73613]
[1717784466277,0.01435004,3656.3,3654.7,2.73613]
[1717784466602,2.74942004,3656.3,3654.7,2.73613]
[1717784466818,2.73507,3656.3,3654.7,2.73613]
[1717784467019,2.73507,3656.3,3654.7,4.12898466]
[1717784467228,0.008,3656.4,3655.5,2.73557]
[1717784467466,0.008,3656.9,3655.5,4.12842466]
[1717784467612,0.008,3656.9,3656.0,2.73519]
[1717784467796,0.008,3657.1,3656.0,2.73519]
[1717784467991,0.02235004,3657.1,3656.0,2.73519]
[1717784468301,2.73449,3657.0,3655.3,2.73571]
[1717784468525,0.008,3656.8,3656.2,2.73506]
[1717784468833,0.008,3657.2,3656.2,2.73506]
[1717784469195,0.008,3657.2,3655.5,0.54193619]
[1717784469398,0.008,3657.0,3655.6,1.39285466]
[1717784469630,0.008,3657.0,3655.7,0.54193619]
[1717784469854,0.008,3657.1,3655.8,1.75899932]
[1717784470213,0.008,3657.1,3655.3,2.74]
[1717784470214,0.02235004,3657.1,3655.3,2.74]
[1717784470415,0.008,3656.8,3655.3,4.13285466]
[1717784470614,0.008,3656.8,3655.4,1.39285466]
[1717784470913,0.008,3657.0,3655.6,1.39285466]
[1717784471140,1.75,3659.5,3655.9,1.39285466]
[1717784471141,0.008,3657.1,3655.9,1.39285466]
[1717784471494,0.008,3657.4,3656.1,3.03585466]
[1717784471768,0.008,3657.5,3656.2,0.6710944]
[1717784472068,0.21396946,3658.4,3656.2,2.3140944]
[1717784472234,0.21396946,3658.6,3656.6,1.39285466]
[1717784472442,0.21396946,3658.6,3656.7,0.33609324]
[1717784472750,0.1234008,3659.2,3656.8,1.39285466]
[1717784472751,0.008,3659.1,3656.8,1.39285466]
[1717784472912,0.008,3659.1,3655.9,2.74]
[1717784472913,4.27185466,3658.6,3655.9,2.74]
[1717784473117,2.879,3658.4,3655.9,2.74]
[1717784473316,2.879,3657.9,3655.1,0.33609324]
[1717784473555,2.879,3657.5,3655.1,0.33609324]
[1717784473715,3.0,3657.4,3654.0,0.581]
[1717784473942,3.0,3657.4,3654.5,1.643]
[1717784473943,1.39285466,3657.3,3654.5,1.643]
[1717784474142,0.96179547,3657.3,3654.5,1.44755929]
[1717784474347,0.008,3657.9,3654.6,0.63569335]
[1717784474580,0.21396946,3658.3,3654.6,0.63569335]
[1717784474581,0.008,3658.3,3654.6,0.90357091]
[1717784474810,0.21396946,3658.3,3655.3,4.383]
[1717784474945,0.21396946,3658.3,3655.4,1.8644622]
[1717784475148,1.39285466,3658.2,3655.7,1.39285466]
[1717784475651,0.21396946,3658.3,3656.3,1.39285466]
[1717784476283,0.21396946,3658.6,3656.4,2.224]
[1717784476510,0.21396946,3658.6,3656.4,2.83064056]
[1717784476719,2.3541,3659.0,3656.9,1.39285466]
[1717784477006,0.2736,3660.1,3656.9,1.39285466]
[1717784477007,0.008,3659.3,3657.0,0.32459633]
[1717784477209,3.1526,3660.1,3657.1,1.39285466]
[1717784477210,0.21396946,3658.9,3657.1,1.39285466]
[1717784477371,0.21396946,3658.9,3657.4,1.39285466]
[1717784477577,0.21396946,3658.9,3657.5,0.30228506]
[1717784477915,0.21396946,3658.9,3657.6,1.39285466]
[1717784478067,0.21396946,3658.9,3657.7,0.32459633]
[1717784478430,0.21396946,3658.9,3657.8,1.39285466]
[1717784478570,0.008,3659.5,3657.9,0.32459633]
[1717784478767,2.4507,3660.2,3658.0,1.37755466]
[1717784479066,2.4507,3660.2,3657.5,0.30228506]
[1717784479067,0.01435004,3660.1,3657.5,0.32228506]
[1717784479301,1.51625546,3659.2,3657.5,1.39285466]
[1717784479503,1.51625546,3659.2,3656.6,2.74]
[1717784479504,0.1234008,3659.2,3657.7,1.39285466]
[1717784479690,0.1234008,3659.2,3657.8,0.34326299]
[1717784479870,0.1234008,3659.2,3657.9,1.39285466]
[1717784480062,0.1234008,3659.2,3658.0,0.34326299]
[1717784480267,0.1234008,3659.2,3658.1,1.39285466]
[1717784480578,0.1234008,3659.2,3658.2,0.32806783]
[1717784480795,0.1234008,3659.2,3658.3,1.39285466]
[1717784481208,0.1234008,3659.2,3658.3,1.72092249]
[1717784481435,0.1234008,3659.2,3658.5,1.39285466]
[1717784481796,0.1234008,3659.2,3658.1,2.74]
[1717784481797,0.006,3660.5,3658.9,1.39285466]
[1717784482162,0.006,3660.5,3659.0,0.32806783]
[1717784482441,0.006,3660.5,3659.1,1.39285466]
[1717784482791,0.02035004,3660.5,3659.1,1.72092249]
[1717784482990,2.3416,3661.1,3658.2,1.643]
[1717784482991,0.21396946,3660.6,3659.2,1.39285466]
[1717784483356,2.10232988,3661.1,3659.2,1.39285466]
[1717784483495,1.39285466,3661.0,3658.6,0.32806783]
[1717784483839,1.74237311,3661.0,3658.7,1.39285466]
[1717784484051,4.74237311,3661.0,3658.7,1.39285466]
[1717784484190,3.0,3660.9,3658.7,1.39285466]
[1717784484557,0.21396946,3659.4,3658.8,1.39285466]
[1717784484763,3.0,3661.0,3658.8,1.39285466]
[1717784485063,1.39285466,3660.9,3658.8,1.72092249]
[1717784485341,3.0,3661.0,3658.8,1.39285466]
[1717784485542,3.0,3661.0,3658.9,0.32806783]
[1717784485697,0.0848901,3661.4,3659.6,1.39285466]
[1717784485904,0.0848901,3661.4,3659.7,0.34653073]
[1717784486216,0.0848901,3661.4,3660.2,1.39285466]
[1717784486422,0.0848901,3661.4,3660.3,0.34653073]
[1717784486765,0.0848901,3661.4,3660.4,1.39285466]
[1717784486947,0.0848901,3661.4,3660.5,0.3131974]
[1717784487101,0.0848901,3661.4,3660.7,1.39285466]
[1717784487296,0.0848901,3661.4,3660.8,0.33256871]
[1717784487544,0.0848901,3661.4,3660.9,1.39285466]
[1717784487698,0.0848901,3661.4,3661.0,0.33393069]
[1717784487900,0.0848901,3661.4,3660.4,2.74]
[1717784488456,0.0848901,3661.4,3660.6,1.39285466]
[1717784488820,0.0848901,3661.4,3660.4,2.74]
[1717784489021,0.0848901,3661.4,3660.5,1.39285466]
[1717784489261,0.0848901,3661.4,3659.5,0.8202]
[1717784489455,0.0848901,3661.4,3660.1,0.33811569]
[1717784489610,0.0848901,3661.4,3660.2,1.39285466]
[1717784489810,0.0848901,3661.4,3660.1,0.33811569]
[1717784490018,0.0848901,3661.4,3660.4,1.39285466]
[1717784490251,0.0848901,3661.4,3660.5,0.33811569]
[1717784490556,0.0848901,3661.4,3660.4,1.39285466]
[1717784491114,0.0848901,3661.4,3660.5,1.39285466]
[1717784491357,0.0848901,3661.4,3660.5,1.70930577]
[1717784491858,0.0848901,3661.4,3660.6,1.67119187]
[1717784492267,0.0848901,3661.4,3660.6,1.39285466]
[1717784492624,0.0848901,3661.4,3660.9,1.39285466]
[1717784492856,0.0848901,3661.4,3661.0,0.31282753]
[1717784493173,0.0848901,3661.4,3661.1,1.39285466]
[1717784493348,0.0848901,3661.4,3659.2,0.8202]
[1717784493656,0.0848901,3661.4,3660.1,1.39285466]
[1717784493964,0.0848901,3661.4,3660.6,1.39285466]
[1717784494167,0.0848901,3661.4,3660.7,1.91824704]
[1717784494365,0.0848901,3661.4,3660.7,1.69678484]
[1717784494715,0.0848901,3661.4,3660.8,1.39285466]
[1717784495058,0.0848901,3661.4,3661.2,1.39285466]
[1717784495258,0.0848901,3661.4,3661.3,0.30393018]
[1717784495563,0.1234008,3662.9,3661.3,1.75959976]
[1717784495564,0.33737026,3662.9,3661.3,1.75959976]
[1717784495796,0.1234008,3662.9,3661.6,1.39285466]
[1717784496065,0.1234008,3662.9,3661.7,0.31213465]
[1717784496262,0.1234008,3662.9,3661.8,1.39285466]
[1717784496464,0.1234008,3662.9,3662.2,1.39285466]
[1717784496638,0.1234008,3662.9,3662.3,0.33149807]
[1717784496834,0.1234008,3662.9,3662.4,1.39285466]
[1717784497703,0.1234008,3662.9,3661.8,0.268583]
[1717784497833,0.1234008,3662.9,3661.9,1.39285466]
[1717784498023,0.1234008,3662.9,3662.2,1.99397003]
[1717784498564,0.1234008,3662.9,3662.2,0.35097003]
[1717784499131,0.1234008,3662.9,3662.8,1.39285466]
[1717784499838,0.1234008,3662.9,3662.4,2.74]
[1717784500060,0.1234008,3662.9,3661.7,0.31870808]
[1717784500239,0.1234008,3662.9,3662.1,1.39285466]
[1717784500460,0.1234008,3662.9,3662.1,1.76067917]
[1717784501482,0.1234008,3662.9,3662.3,1.39285466]
[1717784503473,0.1234008,3662.9,3662.8,1.39285466]
[1717784503796,0.008,3664.7,3662.9,0.37482451]
[1717784504078,0.21396946,3664.7,3664.2,0.27177245]
[1717784504297,2.4992,3665.1,3664.2,0.27177245]
[1717784504432,2.4992,3665.1,3664.3,1.39285466]
[1717784504760,2.60560311,3665.1,3664.3,1.39285466]
[1717784504958,2.39163365,3665.1,3663.0,3.44331494]
[1717784505272,2.39163365,3665.1,3663.5,1.39285466]
[1717784505766,2.60560311,3665.1,3663.5,1.39285466]
[1717784505981,2.39163365,3665.1,3663.6,0.3254071]
[1717784506131,2.39163365,3665.1,3663.1,0.37482451]
[1717784506132,2.60560311,3665.1,3663.7,1.39285466]
[1717784506331,2.39163365,3665.1,3663.8,1.39285466]
[1717784506532,2.39163365,3665.1,3663.8,1.76767917]
[1717784506731,2.39163365,3665.1,3663.9,0.3254071]
[1717784506961,2.39163365,3665.1,3663.8,1.76767917]
[1717784506962,2.60560311,3665.1,3663.8,1.76767917]
[1717784507179,2.39163365,3665.1,3663.8,1.76767917]
[1717784507689,0.21396946,3665.2,3663.9,0.3254071]
[1717784507887,0.21396946,3665.2,3664.0,1.39285466]
[1717784508379,0.21396946,3665.2,3664.0,1.76767917]
[1717784508679,0.21396946,3665.0,3664.1,0.37482451]
[1717784508884,0.21396946,3665.0,3664.2,1.39285466]
[1717784509048,0.21396946,3665.0,3664.2,1.76767917]
[1717784509241,0.21396946,3665.5,3664.3,0.37482451]
[1717784509482,0.1234008,3666.5,3664.6,1.39285466]
[1717784509687,2.3246,3666.4,3664.3,0.3354071]
[1717784509896,0.21396946,3665.8,3664.7,0.37482451]
[1717784510113,2.53856946,3666.4,3664.8,1.39285466]
[1717784510400,0.21396946,3666.4,3664.9,0.35455734]
[1717784510681,0.1234008,3666.5,3664.9,0.35455734]
[1717784511043,0.33737026,3666.5,3664.8,1.72036499]
[1717784511381,0.1234008,3666.5,3664.9,0.32876033]
[1717784511540,0.1234008,3666.5,3665.0,1.39285466]
[1717784511878,0.1234008,3666.5,3665.3,1.39285466]
[1717784512081,0.1234008,3666.5,3665.5,1.39285466]
[1717784512240,0.1234008,3666.5,3665.6,0.31298028]
[1717784512441,0.1234008,3666.5,3665.7,0.2214622]
[1717784512782,0.1234008,3666.5,3665.5,1.39285466]
[1717784513284,0.1234008,3666.5,3665.8,1.39285466]
[1717784513481,0.1234008,3666.5,3665.9,0.311177]
[1717784513985,0.008,3668.2,3667.2,0.27261535]
[1717784514158,0.21396946,3668.2,3667.3,1.39285466]
[1717784514347,0.21396946,3668.3,3665.9,3.08162737]
[1717784514547,2.2992,3668.4,3666.3,1.70146896]
[1717784514752,2.2992,3668.4,3666.4,0.37329404]
[1717784515053,2.2992,3668.4,3666.4,1.11970927]
[1717784515258,2.2992,3668.4,3665.9,2.74]
[1717784515259,3.84179512,3668.4,3665.9,2.74]
[1717784515464,2.2992,3667.9,3665.1,0.3560377]
[1717784515664,3.84179512,3667.9,3665.5,1.39285466]
[1717784515862,3.84179512,3667.9,3664.6,0.28448513]
[1717784515863,3.0,3667.8,3664.8,2.74]
[1717784516187,2.2992,3667.6,3664.8,2.74]
[1717784516361,1.54288606,3667.5,3664.8,2.74]
[1717784516697,1.77706327,3667.4,3664.9,0.2214622]
[1717784516898,4.77706327,3667.4,3665.0,1.39285466]
[1717784517196,4.39285466,3667.4,3665.1,1.39285466]
[1717784517496,0.21396946,3667.5,3666.0,1.39285466]
[1717784517853,0.00163578,3668.0,3664.9,0.9278]
[1717784517854,0.21396946,3667.7,3666.2,1.39285466]
[1717784518058,0.21560524,3668.0,3666.3,0.27599684]
[1717784518269,0.00163578,3668.0,3666.3,3.26950667]
[1717784518483,0.00163578,3668.0,3666.7,1.39285466]
[1717784518971,0.00163578,3668.0,3667.2,1.39285466]
[1717784519602,0.21560524,3668.0,3667.2,1.39285466]
[1717784519828,0.21560524,3668.0,3667.3,1.39285466]
[1717784519962,0.00163578,3668.0,3667.3,1.39285466]
[1717784520166,0.00163578,3668.0,3667.4,1.61431686]
[1717784521068,0.00163578,3668.0,3667.4,1.39285466]
[1717784521567,0.00163578,3668.0,3666.3,2.74]
[1717784521904,0.00163578,3668.0,3665.8,0.75]
[1717784522276,0.00163578,3668.0,3667.5,1.39285466]
[1717784522692,0.00163578,3668.0,3667.9,1.39285466]
[1717784523093,0.008,3669.8,3668.0,0.9278]
[1717784523293,0.1234008,3670.2,3668.8,1.39285466]
[1717784523493,2.4786,3670.1,3668.0,0.3557612]
[1717784523740,0.26020008,3670.0,3667.5,2.74]
[1717784524044,2.4786,3668.3,3666.2,0.3557612]
[1717784524696,3.87145466,3668.3,3666.3,1.39285466]
[1717784524897,0.21396946,3668.1,3666.0,2.74]
[1717784525112,0.21396946,3668.3,3666.0,2.74]
[1717784525310,2.4825,3669.2,3666.5,3.627]
[1717784525311,2.4745,3669.2,3666.5,3.627]
[1717784525512,0.21396946,3669.7,3666.6,1.639]
[1717784525841,0.21396946,3669.7,3669.2,0.10803732]
[1717784526011,0.1234008,3670.2,3668.3,0.29487558]
[1717784526342,0.1234008,3670.2,3667.9,0.9278]
[1717784526499,0.1234008,3670.2,3668.0,1.639]
[1717784526940,0.1234008,3670.2,3668.0,1.65490329]
[1717784527324,0.1234008,3670.2,3668.0,1.639]
[1717784527696,0.1234008,3670.2,3668.8,1.39285466]
[1717784527996,0.1234008,3670.2,3669.6,1.39285466]
[1717784528308,0.1234008,3670.2,3668.1,0.36898578]
[1717784528309,0.1234008,3670.2,3669.8,1.39285466]
[1717784529017,0.1234008,3670.2,3668.8,3.06195892]
[1717784529326,0.1234008,3670.2,3669.2,1.39285466]
[1717784529532,0.1234008,3670.2,3668.8,2.74]
[1717784529703,2.3047,3670.1,3668.9,1.39285466]
[1717784529904,0.21396946,3668.9,3668.8,2.74]
[1717784530133,3.0,3670.0,3666.8,2.78]
[1717784530329,1.39285466,3669.9,3666.6,0.08141914]
[1717784530535,2.471,3669.7,3666.6,0.08141914]
[1717784530730,0.21396946,3669.3,3666.3,2.74]
[1717784531047,0.008,3669.7,3668.3,1.639]
[1717784531231,0.1234008,3670.2,3668.4,0.02123997]
[1717784531581,0.1234008,3670.2,3668.9,1.639]
[1717784531847,0.1234008,3670.2,3668.8,2.74]
[1717784532047,0.008,3670.9,3668.8,2.74]
[1717784532204,0.008,3671.8,3670.1,0.75]
[1717784532408,0.008,3672.6,3670.2,0.48374306]
[1717784532666,0.50226971,3673.3,3670.2,0.78670221]
[1717784532942,2.4854,3673.2,3670.4,0.008]
[1717784533144,2.4854,3673.2,3670.4,0.05422291]
[1717784533345,2.4854,3673.2,3670.5,1.639]
[1717784533641,2.4854,3673.2,3671.7,1.39285466]
[1717784534008,0.1234008,3673.8,3671.7,1.39285466]
[1717784534213,0.1234008,3673.8,3671.7,3.03185466]
[1717784534439,0.21396946,3673.3,3671.7,1.39285466]
[1717784534624,0.1234008,3673.8,3671.8,1.39285466]
[1717784534625,2.2814,3673.2,3671.8,1.39285466]
[1717784534823,0.21396946,3672.2,3670.9,0.008]
[1717784535055,0.005,3671.7,3671.0,1.39285466]
[1717784535376,0.005,3671.7,3670.1,0.008]
[1717784535377,0.21396946,3670.9,3670.1,0.008]
[1717784535565,0.21396946,3671.5,3669.4,0.008]
[1717784535848,0.21396946,3671.5,3669.5,2.74]
[1717784536036,0.005,3671.7,3669.8,0.75]
[1717784536238,0.005,3671.7,3669.6,1.70146949]
[1717784536239,0.005,3671.7,3669.9,1.639]
[1717784536635,0.005,3671.7,3669.8,0.008]
[1717784536835,0.005,3671.7,3669.6,0.008]
[1717784537049,2.261,3671.6,3669.6,0.2294622]
[1717784537251,2.261,3671.6,3669.6,0.008]
[1717784537450,2.261,3671.6,3669.2,0.008]
[1717784537963,2.29,3669.2,3665.3,1.6778]
[1717784538197,2.54039695,3669.2,3665.4,1.639]
[1717784538326,1.39203201,3669.1,3666.3,2.74]
[1717784538647,4.39203201,3669.1,3666.3,2.74]
[1717784538860,5.877,3669.1,3665.3,0.9278]
[1717784539022,5.2254,3669.0,3664.7,1.639]
[1717784539219,0.21396946,3667.0,3664.7,1.639]
[1717784539427,2.3484,3666.9,3664.9,2.74]
[1717784539920,0.21396946,3667.0,3664.9,5.129]
[1717784540120,0.008,3668.2,3666.3,1.639]
[1717784540322,0.008,3669.5,3667.0,1.639]
[1717784540584,0.008,3670.0,3667.1,2.74]
[1717784540743,0.008,3670.0,3667.1,4.379]
[1717784541062,0.008,3670.0,3667.4,1.639]
[1717784541265,0.008,3670.1,3667.4,1.639]
[1717784541433,0.008,3670.1,3668.2,1.639]
[1717784541678,0.008,3670.7,3668.4,1.639]
[1717784541877,0.008,3670.8,3668.4,1.639]
[1717784542217,0.008,3670.8,3668.4,4.639]
[1717784542394,0.008,3670.8,3668.6,2.389]
[1717784542706,0.008,3670.8,3669.0,1.639]
[1717784542891,0.008,3671.0,3669.5,2.74]
[1717784543093,0.008,3671.1,3669.5,2.74]
[1717784543667,0.008,3671.3,3669.6,0.05447617]
[1717784543867,0.008,3671.3,3669.6,1.69347617]
[1717784544108,0.008,3671.3,3669.6,1.639]
[1717784544313,0.008,3671.3,3669.6,1.68328341]
[1717784544512,0.008,3671.3,3671.2,1.39285466]
[1717784544687,0.005,3671.7,3671.2,1.39285466]
[1717784544890,0.005,3671.7,3669.5,4.379]
[1717784545087,0.008,3671.3,3670.1,1.39285466]
[1717784545425,0.008,3671.5,3670.1,1.39285466]
[1717784545809,0.008,3671.5,3670.4,1.39285466]
[1717784546136,0.008,3671.6,3671.4,1.39285466]
[1717784546436,0.005,3671.7,3669.5,2.74]
[1717784546660,1.54589651,3673.7,3669.6,0.9278]
[1717784546933,0.1234008,3673.8,3672.5,1.639]
[1717784547092,0.1234008,3673.8,3673.1,1.39285466]
[1717784547298,0.1234008,3673.8,3673.2,1.39285466]
[1717784548136,2.34,3673.7,3670.9,0.008]
[1717784548294,2.34,3673.7,3672.3,1.39285466]
[1717784548647,0.1234008,3673.8,3672.4,1.81414105]
[1717784548960,0.1234008,3673.8,3672.4,1.39285466]
[1717784549094,0.1234008,3673.8,3672.5,1.639]
[1717784549559,0.1234008,3673.8,3672.4,1.39285466]
[1717784549773,0.1234008,3673.8,3672.5,1.39285466]
[1717784549977,0.1234008,3673.8,3671.0,2.74]
[1717784550261,2.4498,3673.7,3671.1,1.639]
[1717784550633,2.4498,3673.7,3671.0,2.74]
[1717784550825,2.4498,3673.7,3671.7,1.39285466]
[1717784551027,2.1498,3673.7,3671.7,1.39285466]
[1717784551267,2.1498,3673.7,3671.8,0.81871179]
[1717784551583,2.1498,3673.7,3672.2,2.74]
[1717784551787,0.1234008,3673.8,3672.3,0.83121179]
[1717784552086,0.1234008,3673.8,3672.3,2.47021179]
[1717784552239,0.1234008,3673.8,3673.2,1.39285466]
[1717784552437,0.1234008,3673.8,3673.2,1.83436522]
[1717784552659,0.1234008,3673.8,3672.4,1.99786385]
[1717784552660,0.1234008,3673.8,3673.3,1.39285466]
[1717784553055,0.1234008,3673.8,3673.6,1.39285466]
[1717784553254,0.1234008,3673.8,3673.7,1.39285466]
[1717784553494,0.1234008,3673.8,3673.7,1.81591278]
[1717784553649,0.1234008,3673.8,3673.7,1.39285466]
[1717784556338,0.1234008,3673.8,3673.7,1.73258123]
[1717784556802,0.1234008,3673.8,3673.7,1.39285466]
[1717784557253,0.1234008,3673.8,3673.7,1.73258123]
[1717784557613,0.1234008,3673.8,3673.7,1.39285466]
[1717784558532,0.04168722,3673.8,3673.7,1.39285466]
[1717784561304,0.04168722,3673.8,3673.0,2.74]
[1717784561457,0.04168722,3673.8,3671.7,1.2278]
[1717784561458,0.04168722,3673.8,3671.7,0.008]
[1717784561809,2.4861,3673.7,3671.4,0.008]
[1717784562792,6.87895466,3673.7,3671.3,2.74]
[1717784563013,0.33298647,3673.6,3671.3,2.74]
[1717784563181,3.33298647,3673.6,3671.3,4.379]
[1717784563383,3.0,3673.6,3671.3,2.74]
[1717784563675,2.4861,3673.7,3671.3,2.74]
[1717784563676,3.0,3673.5,3671.3,2.74]
[1717784563881,6.87895466,3673.7,3671.3,2.74]
[1717784564093,5.4861,3673.7,3671.4,0.05446003]
[1717784564388,5.4861,3673.7,3671.3,2.74]
[1717784564389,6.87895466,3673.7,3671.3,2.74]
[1717784564674,0.30664419,3673.6,3671.3,2.74]
[1717784564993,3.72272861,3673.6,3671.3,2.74]
[1717784565175,3.0,3673.6,3671.3,2.74]
[1717784565490,2.2916,3673.4,3671.1,0.008]
[1717784565690,2.60240549,3673.3,3670.4,0.008]
[1717784565983,2.2916,3673.1,3670.2,0.008]
[1717784566183,5.2916,3673.1,3670.2,0.008]
[1717784566338,0.52916,3673.0,3670.4,0.008]
[1717784566541,1.39285466,3672.9,3670.4,0.008]
[1717784566838,3.0,3673.0,3670.4,1.39285466]
[1717784567073,2.2916,3673.1,3671.1,1.39285466]
[1717784567276,2.2916,3673.1,3669.7,2.74]
[1717784567277,2.2916,3673.1,3671.6,1.39285466]
[1717784567788,2.2916,3673.1,3672.0,1.39285466]
[1717784567937,2.2916,3673.1,3672.2,1.39285466]
[1717784568141,0.04168722,3673.8,3672.8,1.39285466]
[1717784569137,0.04168722,3673.8,3673.7,1.39285466]
[1717784569343,2.2513,3674.8,3673.9,0.24190819]
[1717784569712,2.2513,3674.8,3672.3,2.74]
[1717784569713,2.2513,3674.8,3672.3,4.387]
[1717784569999,2.2513,3674.8,3672.3,4.379]
[1717784570299,2.00939181,3674.8,3672.3,4.379]
[1717784570593,2.00939181,3674.8,3672.3,2.74]
[1717784570792,2.00939181,3674.8,3672.4,1.639]
[1717784570942,2.00939181,3674.8,3673.3,1.39285466]
[1717784571147,2.00939181,3674.8,3673.6,1.39285466]
[1717784572445,2.00939181,3674.8,3672.6,0.008]
[1717784572645,2.00939181,3674.8,3670.6,0.75]
[1717784572646,0.20093918,3674.7,3672.7,1.39285466]
[1717784572851,2.00939181,3674.8,3672.7,1.39285466]
[1717784573491,2.00939181,3674.8,3672.7,3.03185466]
[1717784573693,2.00939181,3674.8,3673.3,1.39285466]
[1717784573914,2.00939181,3674.8,3673.4,1.39285466]
[1717784575389,2.00939181,3674.8,3672.5,0.008]
[1717784575571,2.00939181,3674.8,3672.6,1.39285466]
[1717784575885,2.00939181,3674.8,3673.0,1.39285466]
[1717784576186,2.00939181,3674.8,3673.3,1.39285466]
[1717784577895,2.00939181,3674.8,3673.8,1.39285466]
[1717784579081,2.00939181,3674.8,3672.6,0.008]
[1717784579444,2.00939181,3674.8,3673.0,1.39285466]
[1717784580465,5.3387,3674.6,3672.4,0.008]
[1717784580673,2.2666,3674.3,3671.6,0.008]
[1717784580881,2.2666,3674.3,3671.5,0.008]
[1717784581088,1.39285466,3674.2,3671.5,0.008]
[1717784581257,4.39285466,3674.2,3671.5,0.008]
[1717784581606,3.0,3674.2,3671.5,0.008]
[1717784581910,2.2666,3674.3,3671.9,1.639]
[1717784582059,2.2666,3674.3,3671.8,0.008]
[1717784582259,2.2666,3674.3,3671.4,0.008]